bitfinex-derivatives/quotes_SOLF0:USTF0_20241105
["timestamp","ask_amount","ask_price","bid_price","bid_amount"]
[1730782848454,73.47629,160.08,160.06,5.9657]
[1730782850854,73.47629,160.08,160.04,9.61517238]
[1730782851051,73.47629,160.08,160.05,2.84]
[1730782852350,76.60169,160.08,160.06,3.1258]
[1730782852652,73.47629,160.08,160.06,3.1258]
[1730782857863,73.47629,160.08,160.05,2.84]
[1730782858071,83.09146238,160.08,160.05,2.84]
[1730782858761,3.1257,160.07,160.05,2.84]
[1730782858959,3.1257,160.07,160.04,3.1262]
[1730782860364,3.1266,160.03,159.99,3.1271]
[1730782860573,9.61517238,160.02,159.97,9.61517238]
[1730782860868,9.61517238,159.98,159.86,36.12499675]
[1730782861062,3.128,159.95,159.91,9.61517238]
[1730782861570,3.128,159.95,159.91,12.45517238]
[1730782862263,3.128,159.95,159.91,15.58387238]
[1730782863167,12.74317238,159.95,159.91,5.9687]
[1730782863373,12.74317238,159.95,159.9,12.74407238]
[1730782863374,3.1282,159.94,159.9,12.74407238]
[1730782863968,9.61517238,159.95,159.9,12.74407238]
[1730782863969,12.74317238,159.95,159.9,12.74407238]
[1730782865574,12.74317238,159.95,159.91,3.1287]
[1730782870976,12.74317238,159.95,159.9,9.61517238]
[1730782871267,12.74317238,159.95,159.92,3.1285]
[1730782872564,1.3568,159.98,159.94,9.61517238]
[1730782872769,1.3568,159.98,159.89,2.84]
[1730782872972,3.1278,159.96,159.93,3.1283]
[1730782874369,3.1276,159.97,159.93,3.1283]
[1730782875575,12.74277238,159.97,159.93,3.1283]
[1730782876972,3.1279,159.96,159.92,3.1285]
[1730782878688,1.3568,159.98,159.91,9.61517238]
[1730782878871,1.3568,159.98,159.9,2.84]
[1730782878872,4.4843,159.98,159.95,3.1279]
[1730782881080,1.3568,159.98,159.93,9.61517238]
[1730782881275,1.3568,159.98,159.94,9.61517238]
[1730782881776,1.3568,159.98,159.95,3.1278]
[1730782883076,1.3568,159.98,159.97,3.1276]
[1730782883277,1.3568,159.98,159.94,9.61517238]
[1730782883486,1.3493,160.0,159.95,9.61517238]
[1730782883686,1.3493,160.0,159.97,3.1274]
[1730782884074,4.4764,160.0,159.96,3.1277]
[1730782884283,4.4764,160.0,159.94,12.45517238]
[1730782884284,9.61517238,159.99,159.94,12.45517238]
[1730782884586,9.61517238,159.99,159.94,9.61517238]
[1730782884984,3.1275,159.98,159.94,12.74317238]
[1730782885486,3.1279,159.96,159.93,3.1283]
[1730782885687,9.61517238,159.98,159.92,12.45517238]
[1730782886689,3.1276,159.97,159.94,3.128]
[1730782888685,2.7067,160.0,159.92,12.45517238]
[1730782888686,2.7067,160.0,159.97,3.1275]
[1730782888897,2.7067,160.0,159.92,2.84]
[1730782889084,2.7067,160.0,159.9,1.2831]
[1730782889285,2.7067,160.0,159.98,3.1274]
[1730782889887,5.9664,160.03,159.99,3.127]
[1730782890195,5.9664,160.03,159.98,9.61517238]
[1730782890196,9.61517238,160.04,159.98,9.61517238]
[1730782890585,12.74157238,160.04,160.0,3.1269]
[1730782891486,9.61517238,160.04,160.0,3.1269]
[1730782891787,3.1264,160.03,160.0,3.1269]
[1730782892385,3.1268,160.01,159.97,12.74277238]
[1730782892595,3.1268,160.01,159.97,3.1276]
[1730782893498,3.127,160.0,159.97,3.1276]
[1730782893795,9.61517238,160.01,159.97,3.1276]
[1730782893986,12.74197238,160.01,159.97,3.1276]
[1730782895596,3.1268,160.01,159.97,3.1276]
[1730782899102,3.1268,160.01,159.96,9.61517238]
[1730782899313,3.1268,160.01,159.98,3.1273]
[1730782901507,3.1265,160.03,159.99,9.61517238]
[1730782901707,47.67118175,160.05,160.0,9.61517238]
[1730782902203,9.61517238,160.05,160.0,12.74207238]
[1730782902815,3.1263,160.04,160.01,3.1268]
[1730782904209,2.6326,160.06,160.0,9.61517238]
[1730782904406,2.6326,160.06,160.03,3.1263]
[1730782905417,5.7585,160.06,160.02,12.74167238]
[1730782906809,4.4522,160.06,160.02,12.74167238]
[1730782908420,4.4522,160.06,160.02,9.61517238]
[1730782908619,4.4522,160.06,160.03,3.1264]
[1730782910115,3.1259,160.06,160.03,3.1264]
[1730782913519,2.6955,160.11,160.02,9.61517238]
[1730782913718,83.09146238,160.08,160.03,9.61517238]
[1730782914115,86.21706238,160.08,160.04,3.1261]
[1730782914323,83.09146238,160.08,160.03,9.61517238]
[1730782914724,3.1257,160.07,160.03,12.74147238]
[1730782915527,3.1257,160.07,160.03,3.1263]
[1730782917525,3.1259,160.06,160.02,12.74167238]
[1730782918426,3.1259,160.06,160.02,9.61517238]
[1730782918630,3.1259,160.06,160.03,3.1264]
[1730782920920,73.47629,160.08,160.03,9.61517238]
[1730782921125,73.47629,160.08,160.05,3.1259]
[1730782921325,73.47629,160.08,160.04,9.61517238]
[1730782922334,73.47629,160.08,160.06,3.1257]
[1730782923522,73.47629,160.08,160.03,2.84]
[1730782923726,73.47629,160.08,160.07,3.1256]
[1730782926332,73.47629,160.08,160.07,12.74077238]
[1730782926528,73.47629,160.08,160.07,15.58077238]
[1730782928333,9.35189453,160.28,160.07,12.45517238]
[1730782928640,9.61517238,160.18,160.13,9.61517238]
[1730782929135,3.1237,160.17,160.13,12.73957238]
[1730782929332,3.1237,160.17,160.11,9.61517238]
[1730782929333,9.61517238,160.17,160.11,9.61517238]
[1730782929535,11.02977238,160.17,160.11,9.61517238]
[1730782929934,11.02977238,160.17,160.12,3.1246]
[1730782930139,11.02977238,160.17,160.12,9.61517238]
[1730782930734,3.1239,160.16,160.13,3.1244]
[1730782930933,11.02977238,160.17,160.13,3.1244]
[1730782931328,14.15347238,160.17,160.13,3.1244]
[1730782934238,14.15347238,160.17,160.12,12.73967238]
[1730782934836,11.02977238,160.17,160.12,12.73967238]
[1730782935043,3.1239,160.16,160.12,12.73967238]
[1730782935235,9.61517238,160.16,160.11,12.73997238]
[1730782936334,3.1242,160.15,160.11,12.73997238]
[1730782937836,3.1242,160.15,160.11,3.1248]
[1730782938031,3.1245,160.13,160.09,3.1251]
[1730782938239,9.61517238,160.14,160.07,76.0425844]
[1730782938240,9.61517238,160.11,160.07,78.8825844]
[1730782938744,9.61517238,160.11,160.07,82.0080844]
[1730782939232,9.61517238,160.11,160.07,76.0425844]
[1730782939431,9.61517238,160.11,160.06,10.28269238]
[1730782939432,9.61517238,160.08,160.06,0.66752]
[1730782939634,10.95947238,160.07,160.02,2.84]
[1730782939849,10.95947238,160.07,160.0,9.61517238]
[1730782939850,10.95947238,160.07,160.01,2.84]
[1730782940136,3.1259,160.06,160.02,3.1266]
[1730782941541,3.1259,160.06,160.01,5.9667]
[1730782942240,3.1259,160.06,160.02,3.1266]
[1730782944239,12.74127238,160.05,160.0,5.9668]
[1730782944538,9.61517238,160.05,160.0,5.9668]
[1730782946347,3.1264,160.04,160.0,5.9668]
[1730782946552,9.61517238,160.05,160.01,3.1267]
[1730782947042,3.1262,160.04,160.01,3.1267]
[1730782947449,9.61517238,160.03,159.88,121.13241732]
[1730782947650,3.127,160.0,159.96,9.61517238]
[1730782947844,9.61517238,160.03,159.96,9.61517238]
[1730782948048,9.61517238,160.03,159.97,9.61517238]
[1730782948645,3.1267,160.02,159.98,3.1272]
[1730782950554,9.61517238,160.04,159.99,9.61517238]
[1730782950758,1.347,160.06,159.95,2.84]
[1730782950759,3.1262,160.05,160.01,3.1267]
[1730782951862,13.80217238,160.06,160.0,9.61517238]
[1730782952049,12.74137238,160.04,160.0,3.1269]
[1730782952451,3.1264,160.03,159.99,12.74217238]
[1730782953751,12.74137238,160.04,160.0,3.1268]
[1730782953950,3.1262,160.04,160.0,12.74197238]
[1730782954653,3.1262,160.04,159.95,2.84]
[1730782954654,4.4729,160.06,160.02,12.74167238]
[1730782955243,3.126,160.05,160.02,3.1265]
[1730782955448,10.96217238,160.06,160.02,3.1265]
[1730782956252,14.08817238,160.06,160.02,3.1265]
[1730782958155,1.347,160.06,160.01,9.61517238]
[1730782958355,14.08517238,160.07,160.03,3.1263]
[1730782958655,14.08517238,160.07,160.01,9.61517238]
[1730782959153,14.08517238,160.07,160.04,3.1262]
[1730782960461,10.95947238,160.07,160.04,3.1262]
[1730782961251,14.08507238,160.07,160.03,12.74147238]
[1730782961554,9.61517238,160.06,160.01,9.61517238]
[1730782962350,12.74117238,160.06,160.02,3.1266]
[1730782963061,9.61517238,160.06,159.99,12.45517238]
[1730782963357,3.1261,160.05,160.01,3.1267]
[1730782963962,3.1262,160.04,160.01,3.1267]
[1730782966259,3.1262,160.04,159.99,12.45517238]
[1730782966460,12.74137238,160.04,160.0,3.1269]
[1730782966862,3.1264,160.03,159.98,9.61517238]
[1730782967167,12.74157238,160.03,159.98,9.61517238]
[1730782967968,12.74157238,160.03,160.0,3.127]
[1730782968961,3.1264,160.03,160.0,3.127]
[1730782970162,13.81597238,160.06,160.0,3.127]
[1730782970163,3.1263,160.04,160.0,3.127]
[1730782970366,13.81597238,160.06,160.02,3.1265]
[1730782970367,4.2008,160.06,160.02,3.1265]
[1730782970663,1.3608,160.06,160.02,3.1265]
[1730782970867,3.126,160.05,160.01,9.61517238]
[1730782971169,1.3608,160.06,160.01,9.61517238]
[1730782971564,4.4867,160.06,160.02,3.1265]
[1730782973169,4.4867,160.06,160.01,9.61517238]
[1730782973366,4.4867,160.06,160.03,3.1264]
[1730782974669,1.3443,160.07,160.03,3.1264]
[1730782975675,4.4699,160.07,160.03,3.1264]
[1730782978078,1.3443,160.07,160.04,3.1261]
[1730782978286,1.3443,160.07,160.03,9.61517238]
[1730782979187,12.74057238,160.09,160.05,3.1259]
[1730782979483,15.51227238,160.1,160.03,9.61517238]
[1730782979980,38.0429941,160.11,160.07,9.61517238]
[1730782980484,9.61517238,160.11,160.08,3.1253]
[1730782980982,12.74007238,160.11,160.07,12.74067238]
[1730782981385,9.61517238,160.11,160.07,12.74067238]
[1730782981582,9.61517238,160.1,160.05,12.45517238]
[1730782981782,14.12437238,160.1,160.06,3.1257]
[1730782982177,3.1253,160.09,160.05,5.9659]
[1730782982379,10.99927238,160.1,160.05,2.84]
[1730782982876,3.1255,160.08,160.05,2.84]
[1730782983481,10.99927238,160.1,160.05,5.966]
[1730782983682,10.99927238,160.1,160.05,2.84]
[1730782984284,3.1255,160.08,160.05,2.84]
[1730782985283,3.1255,160.08,160.05,5.966]
[1730782985677,3.1255,160.08,160.03,9.61517238]
[1730782985878,3.1255,160.08,160.04,3.1261]
[1730782986585,12.30187238,160.09,160.01,12.45517238]
[1730782986586,3.1258,160.06,160.01,12.45517238]
[1730782986983,9.61517238,160.06,160.02,3.1265]
[1730782987185,3.1261,160.05,160.0,12.45517238]
[1730782987583,3.1261,160.05,160.01,3.1267]
[1730782988983,3.1266,160.02,159.99,3.1271]
[1730782989385,1.4189,160.04,159.93,76.10570777]
[1730782989386,9.61517238,160.01,159.93,76.10570777]
[1730782989585,9.61517238,160.01,159.97,3.1274]
[1730782990290,3.1271,160.0,159.97,3.1274]
[1730782990787,9.61517238,160.02,159.97,12.74257238]
[1730782991295,3.1268,160.01,159.97,12.74257238]
[1730782991596,3.1268,160.01,159.98,3.1274]
[1730783000605,3.1268,160.01,159.97,9.61517238]
[1730783001198,3.1268,160.01,159.97,12.74267238]
[1730783001598,9.61517238,160.01,159.93,76.10570777]
[1730783001894,12.74267238,159.98,159.93,76.10570777]
[1730783002089,12.74267238,159.98,159.94,3.128]
[1730783002692,12.74267238,159.98,159.93,76.10570777]
[1730783002693,9.61517238,159.98,159.93,76.10570777]
[1730783002896,9.61517238,160.0,159.95,9.61517238]
[1730783003406,3.1272,159.99,159.96,3.1277]
[1730783003895,3.1272,159.99,159.95,9.61517238]
[1730783004097,3.1272,159.99,159.95,12.74307238]
[1730783004606,3.1272,159.99,159.95,9.61517238]
[1730783005403,3.1272,159.99,159.96,3.1277]
[1730783005901,15.20247238,160.03,159.97,9.61517238]
[1730783006404,12.74217238,160.01,159.97,3.1275]
[1730783007401,3.1271,160.0,159.96,12.74287238]
[1730783009106,3.1272,159.99,159.96,12.74287238]
[1730783012207,3.127,160.0,159.96,12.74287238]
[1730783017203,3.127,160.0,159.96,9.61517238]
[1730783017515,3.127,160.0,159.97,3.1275]
[1730783017908,3.1267,160.02,159.99,3.1271]
[1730783019610,3.1267,160.02,159.97,9.61517238]
[1730783019819,3.1267,160.02,159.98,3.1272]
[1730783020519,3.1271,160.0,159.96,12.74277238]
[1730783020812,3.1271,160.0,159.96,3.1276]
[1730783021016,9.61517238,160.0,159.92,2.84]
[1730783021220,9.61517238,160.0,159.94,9.61517238]
[1730783021611,12.74227238,160.0,159.96,3.1276]
[1730783025618,9.61517238,160.0,159.96,3.1276]
[1730783025819,3.1273,159.99,159.96,3.1276]
[1730783029012,9.61517238,160.0,159.94,9.61517238]
[1730783029209,12.74207238,160.01,159.97,3.1275]
[1730783029409,9.61517238,160.01,159.97,3.1275]
[1730783030213,3.127,160.0,159.97,3.1275]
[1730783031021,3.127,160.0,159.96,12.74287238]
[1730783031420,3.127,160.0,159.96,9.61517238]
[1730783032918,9.61517238,160.01,159.96,9.61517238]
[1730783033118,3.1272,159.99,159.96,9.61517238]
[1730783034814,3.1272,159.99,159.95,3.1279]
[1730783035015,3.1278,159.96,159.87,76.13147828]
[1730783035220,9.61517238,159.98,159.88,2.84]
[1730783035421,9.61517238,159.98,159.92,9.61517238]
[1730783035616,3.1277,159.97,159.93,3.1283]
[1730783036016,3.128,159.95,159.92,9.61517238]
[1730783036231,3.128,159.95,159.91,5.9687]
[1730783036423,3.128,159.95,159.91,15.58387238]
[1730783037625,3.1283,159.94,159.91,15.58387238]
[1730783038234,3.1283,159.94,159.91,12.74387238]
[1730783040934,11.00837238,159.97,159.91,9.61517238]
[1730783041128,3.1283,159.94,159.91,9.61517238]
[1730783041430,9.61517238,159.96,159.91,9.61517238]
[1730783042034,3.1283,159.94,159.91,9.61517238]
[1730783042736,3.1283,159.94,159.9,5.9688]
[1730783042737,11.00837238,159.97,159.92,9.61517238]
[1730783043530,3.128,159.95,159.92,12.74357238]
[1730783046632,9.61517238,159.94,159.87,76.13147828]
[1730783046834,9.61517238,159.93,159.88,12.45517238]
[1730783047028,3.1297,159.87,159.83,3.1301]
[1730783047231,2.84,159.94,159.83,9.61517238]
[1730783047435,9.61517238,159.89,159.83,9.61517238]
[1730783047638,3.1294,159.88,159.85,9.61517238]
[1730783048938,3.1294,159.88,159.84,3.13]
[1730783049240,3.1296,159.87,159.84,3.13]
[1730783049438,3.1296,159.87,159.84,12.74517238]
[1730783052939,9.61517238,159.89,159.84,3.13]
[1730783053135,3.1294,159.88,159.84,12.74517238]
[1730783053531,1.301,159.9,159.86,9.61517238]
[1730783053737,3.1291,159.9,159.87,3.1294]
[1730783053937,3.1291,159.9,159.86,9.61517238]
[1730783054947,3.1288,159.91,159.87,9.61517238]
[1730783055334,12.45517238,159.92,159.87,9.61517238]
[1730783055540,3.129,159.9,159.87,9.61517238]
[1730783055738,12.45517238,159.92,159.85,9.61517238]
[1730783056139,3.1291,159.9,159.86,3.1297]
[1730783056734,3.1291,159.9,159.87,3.1295]
[1730783057841,3.1291,159.9,159.87,12.74467238]
[1730783059242,3.1295,159.88,159.84,3.1301]
[1730783059547,9.61517238,159.87,159.8,9.85968238]
[1730783060445,3.13,159.85,159.82,3.1304]
[1730783060646,9.61517238,159.86,159.8,9.85968238]
[1730783060841,3.1301,159.85,159.8,3.37531]
[1730783061039,4.1064,159.88,159.8,0.24451]
[1730783061040,9.61517238,159.84,159.8,0.24451]
[1730783061446,3.1304,159.83,159.8,0.24451]
[1730783061749,9.61517238,159.84,159.8,0.24451]
[1730783061944,9.61517238,159.83,159.8,0.24451]
[1730783062849,3.1305,159.82,159.8,0.24451]
[1730783066280,2.84,159.86,159.81,3.1307]
[1730783066488,12.45517238,159.86,159.81,3.1307]
[1730783066686,2.84,159.86,159.81,3.1307]
[1730783066881,12.45517238,159.86,159.81,3.1307]
[1730783067080,3.13,159.85,159.81,3.1307]
[1730783068198,12.45517238,159.86,159.8,9.85968238]
[1730783068493,12.45517238,159.87,159.81,9.61517238]
[1730783068892,15.58487238,159.87,159.83,3.1302]
[1730783069595,3.1297,159.86,159.83,3.1302]
[1730783070403,9.61517238,159.87,159.84,3.1301]
[1730783071194,12.74477238,159.87,159.83,3.1302]
[1730783071894,9.61517238,159.87,159.84,3.1301]
[1730783073685,12.74487238,159.87,159.83,12.74537238]
[1730783074279,12.74487238,159.87,159.83,9.61517238]
[1730783074485,12.74487238,159.87,159.84,3.1301]
[1730783075968,9.61517238,159.87,159.84,3.13]
[1730783076469,16.85107238,159.88,159.84,3.13]
[1730783076968,3.1295,159.87,159.84,3.13]
[1730783079177,9.61517238,159.85,159.79,12.45517238]
[1730783079582,3.1303,159.84,159.81,3.1307]
[1730783080273,9.61517238,159.84,159.78,3.1312]
[1730783080479,9.61517238,159.84,159.77,9.61517238]
[1730783081080,3.1306,159.82,159.79,3.1311]
[1730783082677,3.1304,159.83,159.79,3.1311]
[1730783083273,3.1305,159.82,159.79,3.1311]
[1730783084272,3.1304,159.83,159.79,3.1311]
[1730783085973,3.1304,159.83,159.79,3.1309]
[1730783086282,3.1304,159.83,159.78,9.61517238]
[1730783087080,3.1304,159.83,159.8,3.1309]
[1730783088681,4.1064,159.88,159.76,3.11684]
[1730783088682,9.61517238,159.81,159.76,0.27684]
[1730783088984,9.61517238,159.77,159.76,0.27684]
[1730783090478,12.74667238,159.77,159.76,0.27684]
[1730783091181,9.61517238,159.77,159.69,2.84]
[1730783091379,9.61517238,159.77,159.71,9.61517238]
[1730783091380,12.74667238,159.77,159.71,9.61517238]
[1730783091884,12.74667238,159.77,159.74,3.1321]
[1730783097782,9.61517238,159.79,159.73,9.61517238]
[1730783098792,12.74627238,159.79,159.74,9.61517238]
[1730783099382,2.84,159.8,159.75,3.1318]
[1730783099682,9.61517238,159.81,159.76,9.61517238]
[1730783100082,12.74627238,159.8,159.76,12.74677238]
[1730783100283,9.61517238,159.8,159.76,3.1316]
[1730783100486,9.61517238,159.8,159.74,9.61517238]
[1730783100691,3.1311,159.79,159.75,3.1317]
[1730783101079,9.61517238,159.78,159.74,9.61517238]
[1730783101286,12.74657238,159.78,159.75,3.1319]
[1730783101584,9.61517238,159.78,159.75,3.1319]
[1730783101779,12.74617238,159.8,159.76,3.1315]
[1730783102386,9.61517238,159.81,159.75,9.61517238]
[1730783103091,12.74587238,159.81,159.77,3.1313]
[1730783103488,12.74587238,159.81,159.75,9.61517238]
[1730783103685,12.74587238,159.81,159.78,3.1313]
[1730783107990,12.5075,160.01,159.79,9.61517238]
[1730783107991,38.09154461,159.9,159.79,9.61517238]
[1730783108194,38.09154461,159.9,159.77,2.84]
[1730783108195,3.1301,159.85,159.8,9.61517238]
[1730783108693,3.1301,159.85,159.81,3.1306]
[1730783109096,3.1301,159.84,159.81,3.1306]
[1730783111689,3.1301,159.84,159.8,3.1308]
[1730783112289,9.61517238,159.85,159.81,3.1306]
[1730783112996,12.74517238,159.85,159.81,3.1306]
[1730783113891,3.1301,159.84,159.81,3.1306]
[1730783123299,9.61517238,159.85,159.78,12.47517238]
[1730783123500,3.1303,159.83,159.8,3.1309]
[1730783124406,3.1302,159.84,159.81,3.1307]
[1730783129109,2.7967,159.88,159.81,9.61517238]
[1730783129317,2.7967,159.88,159.78,2.86]
[1730783129318,9.61517238,159.87,159.83,9.61517238]
[1730783130108,1.383,159.88,159.83,9.61517238]
[1730783130700,4.5123,159.88,159.85,3.1298]
[1730783131103,4.5123,159.88,159.83,9.61517238]
[1730783131306,4.5123,159.88,159.84,3.13]
[1730783131702,14.12747238,159.88,159.84,3.13]
[1730783132304,3.1297,159.87,159.84,3.13]
[1730783135619,10.99817238,159.88,159.84,3.13]
[1730783135620,14.12757238,159.88,159.84,3.13]
[1730783141311,4.5124,159.88,159.85,3.1299]
[1730783141617,12.74447238,159.89,159.83,9.61517238]
[1730783142109,3.1293,159.89,159.84,9.61517238]
[1730783143111,3.1288,159.91,159.88,3.1293]
[1730783143511,3.1288,159.91,159.86,2.86]
[1730783143512,11.02647238,159.92,159.87,9.61517238]
[1730783143712,14.15517238,159.92,159.89,3.1291]
[1730783145112,14.15517238,159.92,159.87,9.61517238]
[1730783145311,4.54,159.92,159.88,3.1292]
[1730783145517,14.15517238,159.92,159.88,3.1292]
[1730783151414,14.15517238,159.92,159.89,3.129]
[1730783152021,3.1287,159.92,159.89,3.129]
[1730783152817,2.6451,159.95,159.89,9.61517238]
[1730783152818,3.1283,159.94,159.89,9.61517238]
[1730783153024,4.1462,160.0,159.91,9.61517238]
[1730783153224,9.61517238,159.97,159.91,12.45517238]
[1730783153419,3.1279,159.96,159.92,3.1284]
[1730783154022,3.1279,159.96,159.93,3.1283]
[1730783155818,9.61517238,159.97,159.94,3.1281]
[1730783155819,12.74277238,159.97,159.94,3.1281]
[1730783156423,1.2936,159.99,159.92,9.61517238]
[1730783156625,1.3062,160.0,159.96,9.61517238]
[1730783156829,9.61517238,160.03,160.0,3.1268]
[1730783157221,3.1262,160.04,160.0,3.1268]
[1730783157538,9.61517238,160.04,159.99,9.61517238]
[1730783157734,1.4167,160.05,159.99,3.1271]
[1730783157735,9.61517238,160.02,159.99,3.1271]
[1730783159151,1.4167,160.05,159.92,0.9401]
[1730783159349,12.74217238,160.01,159.95,9.61517238]
[1730783159547,9.61517238,160.01,159.95,9.61517238]
[1730783159749,3.127,160.0,159.96,3.1276]
[1730783159950,9.61517238,160.01,159.96,9.61517238]
[1730783160161,10.95577238,160.02,159.96,9.61517238]
[1730783160363,14.08237238,160.02,159.98,3.1273]
[1730783160765,10.95577238,160.02,159.98,3.1273]
[1730783161255,1.3406,160.02,159.98,3.1273]
[1730783161459,10.95577238,160.02,159.98,3.1273]
[1730783162055,14.08237238,160.02,159.98,3.1273]
[1730783162436,10.95577238,160.02,159.98,3.1273]
[1730783163336,10.95577238,160.02,160.0,3.127]
[1730783163532,1.3406,160.02,160.0,3.127]
[1730783163736,1.3406,160.02,159.98,2.84]
[1730783163938,1.3406,160.02,159.99,3.127]
[1730783164337,1.3406,160.02,159.98,2.84]
[1730783165242,1.3406,160.02,160.0,3.1269]
[1730783165837,1.3406,160.02,159.99,3.1271]
[1730783166045,1.3406,160.02,159.98,2.84]
[1730783166932,1.3406,160.02,160.01,3.1268]
[1730783167536,14.15787238,160.05,160.01,3.1268]
[1730783167747,1.4167,160.05,160.01,9.61517238]
[1730783168141,1.4167,160.05,160.03,3.1263]
[1730783171952,1.4167,160.05,160.02,3.1266]
[1730783172146,1.4167,160.05,160.01,9.61517238]
[1730783172949,1.4167,160.05,160.03,3.1263]
[1730783173847,1.4023,160.08,160.02,9.61517238]
[1730783174048,1.4023,160.08,160.05,3.1259]
[1730783174450,1.4023,160.08,160.04,9.61517238]
[1730783174946,1.4023,160.08,160.06,3.1257]
[1730783175249,1.4023,160.08,160.04,9.61517238]
[1730783175449,1.4023,160.08,160.05,9.61517238]
[1730783175647,1.4023,160.08,160.07,3.1256]
[1730783176046,59.4977948,160.1,160.05,9.61517238]
[1730783176354,9.61517238,160.12,160.08,3.1253]
[1730783176541,3.1245,160.13,160.07,9.61517238]
[1730783176848,2.84,160.14,160.08,3.1254]
[1730783176849,9.61517238,160.11,160.08,3.1254]
[1730783177051,2.84,160.14,160.02,2.84]
[1730783177052,9.61517238,160.1,160.02,2.84]
[1730783177253,9.61517238,160.09,160.05,3.1258]
[1730783177547,10.94117238,160.09,160.05,3.1258]
[1730783177754,14.06657238,160.09,160.05,3.1258]
[1730783180752,3.1254,160.08,160.05,3.1258]
[1730783181649,3.1254,160.08,160.04,9.61517238]
[1730783181850,3.1254,160.08,160.04,12.74137238]
[1730783184981,4.4513,160.09,160.05,3.126]
[1730783185285,4.4513,160.09,160.04,9.61517238]
[1730783185470,1.326,160.09,160.04,9.61517238]
[1730783185673,1.326,160.09,160.06,3.1257]
[1730783189386,4.4513,160.09,160.06,3.1257]
[1730783192972,3.1256,160.08,160.04,12.74127238]
[1730783193167,3.1256,160.08,159.99,0.9388]
[1730783193168,1.326,160.09,159.93,6.2567]
[1730783193369,9.61517238,160.06,160.01,9.61517238]
[1730783193862,3.1262,160.05,160.01,9.61517238]
[1730783194862,9.61517238,160.07,160.01,9.61517238]
[1730783195064,3.1261,160.05,160.01,9.61517238]
[1730783196058,3.1261,160.05,160.02,9.61517238]
[1730783196262,3.1261,160.05,160.02,12.74177238]
[1730783198658,9.61517238,160.07,160.02,9.61517238]
[1730783198854,2.6782,160.09,160.03,9.61517238]
[1730783199067,12.29337238,160.09,160.03,9.61517238]
[1730783199362,9.61517238,160.08,160.02,9.61517238]
[1730783199762,9.61517238,160.07,160.02,9.61517238]
[1730783199963,3.1261,160.05,160.02,12.74167238]
[1730783206474,3.1259,160.06,160.03,3.1264]
[1730783207279,12.74087238,160.07,160.04,3.1261]
[1730783207670,9.61517238,160.07,160.04,3.1261]
[1730783208072,9.61517238,160.08,160.04,3.1261]
[1730783208377,9.61517238,160.08,160.02,9.61517238]
[1730783208575,3.1258,160.06,160.03,3.1263]
[1730783210966,2.6782,160.09,160.03,9.61517238]
[1730783211167,15.41867238,160.09,160.06,3.1257]
[1730783211478,12.29337238,160.09,160.03,9.61517238]
[1730783211671,12.29337238,160.09,160.04,3.1261]
[1730783211672,3.1257,160.07,160.04,3.1261]
[1730783213481,12.29337238,160.09,160.04,3.1261]
[1730783213683,3.1256,160.08,160.04,3.1261]
[1730783214283,3.1256,160.08,160.03,9.61517238]
[1730783214478,1.326,160.09,160.05,9.61517238]
[1730783216383,4.4512,160.09,160.06,3.1257]
[1730783220985,4.4512,160.09,160.05,3.1259]
[1730783221484,4.4512,160.09,160.02,2.84]
[1730783221485,3.1257,160.07,160.02,12.45517238]
[1730783221685,3.1257,160.07,160.04,3.1261]
[1730783221881,9.61517238,160.08,160.04,3.1261]
[1730783222080,1.326,160.09,159.97,2.84]
[1730783222081,9.61517238,160.05,159.97,2.84]
[1730783222278,9.61517238,160.05,160.01,3.1266]
[1730783222784,9.61517238,160.05,160.0,3.1269]
[1730783222977,9.61517238,160.05,159.97,2.84]
[1730783222978,9.61517238,160.05,159.99,9.61517238]
[1730783223180,9.61517238,160.05,159.94,0.9395]
[1730783223380,2.84,160.07,159.99,3.1271]
[1730783223381,9.61517238,160.03,159.99,3.1271]
[1730783223577,9.61517238,160.03,159.97,12.45517238]
[1730783224286,12.74167238,160.03,160.0,3.1269]
[1730783228786,3.1265,160.03,160.0,3.1269]
[1730783229790,3.1265,160.03,160.01,3.1268]